bitfinex-derivatives/quotes_BNBF0:USTF0_20250507
["timestamp","ask_amount","ask_price","bid_price","bid_amount"]
[1746646550373,0.29071103,599.06,598.15,3.63236428]
[1746646550574,1.26386317,599.05,598.15,3.63236428]
[1746646550768,1.26386317,599.04,598.15,3.63236428]
[1746646550973,2.26628995,599.03,598.15,3.63236428]
[1746646551276,1.26386317,599.02,598.15,3.63236428]
[1746646551472,1.26386317,599.01,598.15,3.63236428]
[1746646551668,0.29069403,599.05,598.15,3.63236428]
[1746646551669,2.26628995,599.0,598.15,3.63236428]
[1746646551973,1.26386317,598.99,598.15,3.63236428]
[1746646552274,2.26628995,598.98,598.15,3.63236428]
[1746646552473,1.26386317,598.97,598.15,3.63236428]
[1746646552674,1.26386317,598.96,598.15,3.63236428]
[1746646552871,1.26386317,598.95,598.15,3.63236428]
[1746646553070,2.26628995,598.94,598.15,3.63236428]
[1746646553274,1.26386317,598.93,598.15,3.63236428]
[1746646553575,1.00242678,598.92,598.15,3.63236428]
[1746646553777,1.26386317,598.91,598.15,3.63236428]
[1746646554176,1.00242678,598.9,598.15,3.63236428]
[1746646554776,1.00242678,598.89,598.15,3.63236428]
[1746646555271,0.29070739,599.06,598.15,3.63236428]
[1746646555272,1.00242678,598.88,598.15,3.63236428]
[1746646555676,0.29070739,599.06,598.15,3.63236428]
[1746646555870,1.00156894,598.87,598.15,3.63236428]
[1746646556072,1.00156894,598.86,598.15,3.63236428]
[1746646556474,0.29070739,599.06,598.15,3.63236428]
[1746646556675,1.2620927,599.05,598.15,3.63236428]
[1746646556875,2.26376479,599.04,598.15,3.63236428]
[1746646557177,2.26376479,599.03,598.15,3.63236428]
[1746646557377,1.2620927,599.02,598.15,3.63236428]
[1746646557672,2.26376479,599.01,598.15,3.63236428]
[1746646557877,1.2620927,599.0,598.15,3.63236428]
[1746646558172,1.2620927,598.99,598.15,3.63236428]
[1746646558377,2.26376479,598.98,598.15,3.63236428]
[1746646558578,1.2620927,598.97,598.15,3.63236428]
[1746646558773,1.2620927,598.96,598.15,3.63236428]
[1746646559077,2.26376479,598.95,598.15,3.63236428]
[1746646559272,1.2620927,598.94,598.15,3.63236428]
[1746646559471,2.26376479,598.94,598.15,3.63236428]
[1746646559673,1.2620927,598.93,598.15,3.63236428]
[1746646560078,1.00167209,598.92,598.15,3.63236428]
[1746646560773,1.00167209,598.91,598.15,3.63236428]
[1746646561473,1.00167209,598.9,598.15,3.63236428]
[1746646562177,1.00167209,598.89,598.15,3.63236428]
[1746646562678,1.00167209,598.88,598.15,3.63236428]
[1746646562878,1.00167209,598.87,598.15,3.63236428]
[1746646563272,0.29069646,599.12,598.15,3.63236428]
[1746646563473,2.26364063,599.11,598.15,3.63236428]
[1746646563672,1.26176155,599.1,598.15,3.63236428]
[1746646563876,1.26176155,599.09,598.15,3.63236428]
[1746646564179,2.26364063,599.08,598.15,3.63236428]
[1746646564376,1.26176155,599.07,598.15,3.63236428]
[1746646564578,1.26176155,599.06,598.15,3.63236428]
[1746646564779,1.26176155,599.05,598.15,3.298]
[1746646564978,1.26176155,599.04,598.15,3.298]
[1746646565174,1.26176155,599.03,598.15,3.298]
[1746646565374,1.26411321,600.37,598.15,3.298]
[1746646565375,1.00187908,599.02,598.15,3.298]
[1746646566084,0.2906564,599.21,598.15,3.298]
[1746646566278,1.26070937,599.2,598.15,3.298]
[1746646566478,2.26199043,599.19,598.15,3.298]
[1746646566779,2.26199043,599.18,598.15,3.298]
[1746646566980,2.26199043,599.17,598.15,3.298]
[1746646567180,1.26070937,599.16,598.15,3.298]
[1746646567378,1.26070937,599.15,598.15,3.298]
[1746646567580,1.26070937,599.14,598.15,3.298]
[1746646567875,1.26070937,599.13,598.15,3.298]
[1746646568080,2.26199043,599.12,598.15,3.298]
[1746646568381,1.26128097,599.11,598.15,3.298]
[1746646568682,1.00128106,599.1,598.15,3.298]
[1746646568880,1.26128097,599.09,598.15,3.298]
[1746646569081,1.00128106,599.08,598.15,3.298]
[1746646569776,1.00128106,599.07,598.15,3.298]
[1746646569977,1.00128106,599.06,598.15,3.298]
[1746646570477,1.00128106,599.24,598.15,3.298]
[1746646570682,1.26126769,599.23,598.15,3.298]
[1746646570879,1.26126769,599.22,598.15,3.298]
[1746646571080,1.00128106,599.24,598.15,3.298]
[1746646571081,1.26126769,599.21,598.15,3.298]
[1746646571382,0.29063819,599.25,598.15,3.298]
[1746646571383,2.26254875,599.2,598.15,3.298]
[1746646571680,1.26126769,599.19,598.15,3.298]
[1746646571878,1.00128106,599.2,598.15,3.298]
[1746646571879,1.26126769,599.18,598.15,3.298]
[1746646572081,1.26223074,599.17,598.15,3.298]
[1746646572579,1.00128106,599.16,598.15,3.298]
[1746646572882,1.26223074,599.15,598.15,3.298]
[1746646573582,1.00128106,599.14,598.15,3.298]
[1746646573984,1.00128106,599.13,598.15,3.298]
[1746646574583,0.29061878,599.32,598.15,3.298]
[1746646574779,2.26244125,599.31,598.15,3.298]
[1746646574983,1.26116019,599.3,598.15,3.298]
[1746646575180,1.26116019,599.29,598.15,3.298]
[1746646575483,2.26244125,599.28,598.15,3.298]
[1746646575678,2.26244125,599.27,598.15,3.298]
[1746646575879,1.00128106,599.27,598.15,3.298]
[1746646576187,1.26040569,599.26,598.17,0.33435311]
[1746646576384,1.00128106,599.26,598.17,0.33435311]
[1746646576885,1.00128106,599.31,598.17,0.33435311]
[1746646577086,1.25891047,599.3,598.17,0.33435311]
[1746646577387,1.00128106,599.29,598.17,0.33435311]
[1746646577586,1.25891047,599.28,598.17,0.33435311]
[1746646577787,1.00128106,599.27,598.17,0.33435311]
[1746646578386,1.00128106,599.37,598.17,0.33435311]
[1746646578587,1.25888498,599.36,598.17,0.33435311]
[1746646578988,1.00128106,599.35,598.17,0.33435311]
[1746646579184,1.25888498,599.34,598.17,1.46735311]
[1746646579590,1.00128106,599.33,598.17,1.46735311]
[1746646579888,1.25888498,599.32,598.17,2.49735311]
[1746646580086,2.26016604,599.32,598.17,3.24835311]
[1746646580390,1.25888498,599.31,598.17,4.18335311]
[1746646580891,1.00128106,599.3,598.17,4.18335311]
[1746646581191,1.25752231,599.29,598.17,4.18335311]
[1746646581596,1.00128106,599.28,598.17,4.18335311]
[1746646582193,1.00128106,599.37,598.17,4.18335311]
[1746646582490,1.25729476,599.36,598.17,4.18335311]
[1746646582690,1.00128106,599.35,598.17,4.18335311]
[1746646582892,1.25729476,599.34,598.17,4.18335311]
[1746646583392,1.00128106,599.33,598.17,4.18335311]
[1746646583592,1.25729476,599.32,598.17,4.18335311]
[1746646583891,1.00128106,599.31,598.17,4.18335311]
[1746646584091,1.25729476,599.3,598.17,4.18335311]
[1746646584291,1.00128106,599.29,598.17,4.18335311]
[1746646584491,1.25729476,599.28,598.17,4.18335311]
[1746646584892,1.00128106,599.27,598.17,4.18335311]
[1746646585394,2.957651,600.4,598.17,4.18335311]
[1746646585594,0.3331723,600.29,598.17,4.18335311]
[1746646585791,1.25686755,600.28,598.17,4.18335311]
[1746646585987,1.25686755,600.27,598.17,4.18335311]
[1746646586192,1.56350848,600.26,598.17,4.18335311]
[1746646586392,1.25686755,600.25,598.17,4.18335311]
[1746646586694,2.25776815,600.24,598.17,4.18335311]
[1746646586891,2.25538475,600.23,598.17,4.18335311]
[1746646587095,2.25776815,600.22,598.17,4.18335311]
[1746646587391,1.25648709,600.21,598.17,4.18335311]
[1746646587603,1.25648709,600.2,598.17,4.18335311]
[1746646587802,1.25648709,600.19,598.17,4.18335311]
[1746646587997,2.25776815,600.18,598.17,4.18335311]
[1746646588198,2.25538475,600.17,598.17,4.18335311]
[1746646588399,1.25648709,600.16,598.17,4.18335311]
[1746646588605,1.25648709,600.15,598.17,4.18335311]
[1746646588805,2.56437253,600.14,598.17,4.18335311]
[1746646589005,2.25569355,600.13,598.17,4.18335311]
[1746646589204,1.25648709,600.12,598.17,4.18335311]
[1746646589405,0.30660438,600.12,598.17,4.18335311]
[1746646589805,1.25632935,600.11,598.17,4.18335311]
[1746646590002,0.30660438,600.1,598.17,4.18335311]
[1746646590405,1.25651308,600.09,598.17,4.18335311]
[1746646590607,0.30660438,600.1,598.17,4.18335311]
[1746646590808,1.56320417,600.08,598.17,4.18335311]
[1746646591008,1.25659979,600.08,598.17,4.18335311]
[1746646591205,0.3066073,600.07,598.17,4.18335311]
[1746646591809,1.2567685,600.06,598.17,4.18335311]
[1746646592015,0.3066073,600.07,598.17,4.18335311]
[1746646592016,1.25676788,600.05,598.17,4.18335311]
[1746646592213,1.25676788,600.04,598.17,4.18335311]
[1746646592408,0.3066073,600.04,598.17,4.18335311]
[1746646592612,0.3066073,600.03,598.17,4.18335311]
[1746646593015,0.29047808,600.03,598.17,4.18335311]
[1746646593211,0.3066073,600.02,598.17,4.18335311]
[1746646593410,1.25633898,600.01,598.17,4.18335311]
[1746646593609,1.25633898,600.0,598.17,4.18335311]
[1746646593813,2.56422734,599.99,598.17,4.18335311]
[1746646594010,1.30788836,599.99,598.17,4.18335311]
[1746646594215,1.56299546,599.98,598.17,4.18335311]
[1746646594412,2.56427652,599.97,598.17,4.18335311]
[1746646594621,2.25766922,599.96,598.17,4.18335311]
[1746646594845,1.25638816,599.95,598.17,4.18335311]
[1746646595051,1.25638816,599.94,598.17,4.18335311]
[1746646595263,2.25766922,599.93,598.17,4.18335311]
[1746646595449,1.56299546,599.92,598.17,4.18335311]
[1746646595748,1.56299546,599.91,598.17,4.18335311]
[1746646595942,2.56427652,599.9,598.17,4.18335311]
[1746646596132,1.25638816,599.89,598.17,4.18335311]
[1746646596335,1.25638816,599.88,598.17,4.18335311]
[1746646596529,2.25766922,599.87,598.17,4.18335311]
[1746646596729,1.25638816,599.86,598.17,4.18335311]
[1746646596935,2.56427652,599.85,598.17,4.18335311]
[1746646597132,1.25638816,599.84,598.17,4.18335311]
[1746646597326,1.25638816,599.83,598.17,4.18335311]
[1746646597530,2.25766922,599.82,598.17,4.18335311]
[1746646597745,1.25740154,599.81,598.17,4.18335311]
[1746646598030,2.2586826,599.8,598.17,4.18335311]
[1746646598235,1.25740154,599.79,598.17,4.18335311]
[1746646598440,1.25740154,599.78,598.17,4.18335311]
[1746646598627,1.25740154,599.77,598.17,4.18335311]
[1746646598927,2.2586826,599.76,598.17,4.18335311]
[1746646599116,1.25740154,599.75,598.17,4.18335311]
[1746646599312,2.2586826,599.74,598.17,4.18335311]
[1746646599511,1.25740154,599.73,598.17,4.18335311]
[1746646599715,2.2586826,599.72,598.17,4.18335311]
[1746646599913,1.25740154,599.71,598.17,4.18335311]
[1746646600213,2.2586826,599.7,598.17,4.18335311]
[1746646600517,1.25740154,599.69,598.17,4.18335311]
[1746646600716,1.25740154,599.68,598.17,4.18335311]
[1746646600916,1.25740154,599.67,598.17,4.18335311]
[1746646601117,1.25740154,599.66,598.17,4.18335311]
[1746646601317,2.2586826,599.65,598.17,4.18335311]
[1746646601618,2.2586826,599.64,598.17,4.18335311]
[1746646601813,1.25740154,599.63,598.17,4.18335311]
[1746646602016,1.25740154,599.62,598.17,4.18335311]
[1746646602318,2.2586826,599.61,598.17,4.18335311]
[1746646602515,2.2586826,599.6,598.17,4.18335311]
[1746646602716,1.25740154,599.59,598.17,4.18335311]
[1746646602916,1.25740154,599.58,598.17,4.18335311]
[1746646603119,1.25740154,599.57,598.17,4.18335311]
[1746646603319,1.25740154,599.56,598.17,4.18335311]
[1746646603515,2.2586826,599.55,598.17,4.18335311]
[1746646603718,1.25740154,599.54,598.17,4.18335311]
[1746646603918,2.2586826,599.53,598.17,4.18335311]
[1746646604120,1.25740154,599.52,598.17,4.18335311]
[1746646604315,1.25740154,599.51,598.17,4.18335311]
[1746646604516,1.25740154,599.5,598.17,4.18335311]
[1746646604717,2.2586826,599.49,598.17,4.18335311]
[1746646604921,1.25740154,599.48,598.17,4.18335311]
[1746646605120,1.25711214,599.47,598.17,4.18335311]
[1746646605318,1.25711214,599.46,598.17,4.18335311]
[1746646605518,2.2583932,599.45,598.17,4.18335311]
[1746646605722,0.29056903,599.49,598.17,4.18335311]
[1746646607221,2.25564945,599.48,598.17,4.18335311]
[1746646607422,1.2572134,599.47,598.17,4.18335311]
[1746646607625,1.2572134,599.46,598.17,4.18335311]
[1746646607822,2.25564945,599.45,598.17,4.18335311]
[1746646608123,2.25564945,599.44,598.17,4.18335311]
[1746646608318,1.2572134,599.43,598.17,4.18335311]
[1746646608517,1.2572134,599.42,598.17,4.18335311]
[1746646608717,1.2572134,599.41,598.17,4.18335311]
[1746646608915,2.25564945,599.4,598.17,4.18335311]
[1746646609120,1.2572134,599.39,598.17,4.18335311]
[1746646609317,1.2572134,599.38,598.17,4.18335311]
[1746646609520,1.2572134,599.37,598.17,4.18335311]
[1746646609718,2.25564945,599.36,598.17,4.18335311]
[1746646609917,1.2572134,599.35,598.17,4.18335311]
[1746646610115,1.2572134,599.34,598.17,4.18335311]
[1746646610317,1.2572134,599.33,598.17,4.18335311]
[1746646610620,1.2572134,599.32,598.17,4.18335311]
[1746646610820,2.25564945,599.31,598.17,4.18335311]
[1746646611018,1.2572134,599.3,598.17,4.18335311]
[1746646611218,1.2572134,599.29,598.17,4.18335311]
[1746646611418,1.2572134,599.28,598.17,4.18335311]
[1746646611622,1.2572134,599.27,598.17,4.18335311]
[1746646611823,1.2572134,599.26,598.17,4.18335311]
[1746646612023,1.2572134,599.25,598.17,4.18335311]
[1746646612322,2.25564945,599.24,598.17,4.18335311]
[1746646612521,2.25564945,599.23,598.17,4.18335311]
[1746646612719,1.2572134,599.22,598.17,4.18335311]
[1746646612922,0.99843605,599.21,598.17,4.18335311]
[1746646613116,1.2572134,599.2,598.17,4.18335311]
[1746646613424,0.99843605,599.19,598.17,4.18335311]
[1746646613717,1.2572134,599.2,598.17,4.18335311]
[1746646613718,0.99843605,599.18,598.17,4.18335311]
[1746646614023,0.99843605,599.17,598.17,4.18335311]
[1746646614216,0.29056539,599.46,598.17,4.18335311]
[1746646614217,0.99843605,599.16,598.17,4.18335311]
[1746646614722,0.99843605,599.15,598.17,4.18335311]
[1746646615025,0.29056539,599.46,598.17,4.18335311]
[1746646615222,2.25893059,599.45,598.17,4.18335311]
[1746646615422,2.25893059,599.44,598.17,4.18335311]
[1746646615622,1.25884046,599.43,598.17,4.18335311]
[1746646615823,1.25884046,599.42,598.17,4.18335311]
[1746646616023,2.25893059,599.41,598.17,4.18335311]
[1746646616223,2.25893059,599.4,598.17,4.18335311]
[1746646616424,1.25884046,599.39,598.17,4.18335311]
[1746646616625,1.25884046,599.38,598.17,4.18335311]
[1746646616925,2.25893059,599.37,598.17,4.18335311]
[1746646617128,2.25893059,599.36,598.17,4.18335311]
[1746646617424,1.25884046,599.35,598.17,4.18335311]
[1746646617624,1.25884046,599.34,598.17,4.18335311]
[1746646617825,1.25884046,599.33,598.17,4.18335311]
[1746646618120,2.25893059,599.32,598.17,4.18335311]
[1746646618325,1.25884046,599.31,598.17,4.18335311]
[1746646618625,2.25893059,599.3,598.17,4.18335311]
[1746646618823,1.25884046,599.29,598.17,4.18335311]
[1746646619024,1.25884046,599.28,598.17,4.18335311]
[1746646619226,1.25884046,599.27,598.17,4.18335311]
[1746646619425,1.25884046,599.26,598.17,4.18335311]
[1746646619625,2.25893059,599.25,598.17,4.18335311]
[1746646619826,1.25884046,599.24,598.17,4.18335311]
[1746646620025,1.25884046,599.23,598.17,4.18335311]
[1746646620225,2.25893059,599.22,598.17,4.18335311]
[1746646620526,1.25884046,599.21,598.17,4.18335311]
[1746646620721,2.25893059,599.2,598.17,4.18335311]
[1746646620921,1.26055717,599.19,598.17,4.18335311]
[1746646621128,1.26055717,599.18,598.17,4.18335311]
[1746646621321,1.00009013,599.17,598.17,4.18335311]
[1746646621926,1.00009013,599.16,598.17,4.18335311]
[1746646622429,1.00009013,599.15,598.17,4.18335311]
[1746646622929,1.00009013,599.14,598.17,4.18335311]
[1746646623131,1.00009013,599.13,598.17,4.18335311]
[1746646623930,1.00009013,599.12,598.17,4.18335311]
[1746646624430,1.00009013,599.11,598.17,4.18335311]
[1746646625026,1.00009013,599.1,598.17,4.18335311]
[1746646625928,1.00009013,599.09,598.17,4.18335311]
[1746646626428,1.00009013,599.35,598.17,4.18335311]
[1746646626628,1.26108025,599.34,598.17,4.18335311]
[1746646626829,1.26108025,599.33,598.17,4.18335311]
[1746646627030,2.26117038,599.32,598.17,4.18335311]
[1746646627231,1.26108025,599.31,598.17,4.18335311]
[1746646627432,1.26108025,599.3,598.17,4.18335311]
[1746646627628,1.26108025,599.29,598.17,4.18335311]
[1746646627829,1.26108025,599.28,598.17,4.18335311]
[1746646628033,1.26108025,599.27,598.17,4.18335311]
[1746646628233,2.26117038,599.26,598.17,4.18335311]
[1746646628430,1.26108025,599.25,598.17,4.18335311]
[1746646628631,1.26108025,599.24,598.17,4.18335311]
[1746646628832,2.26117038,599.23,598.17,4.18335311]
[1746646629032,1.26108025,599.22,598.17,4.18335311]
[1746646629232,1.26108025,599.21,598.17,4.18335311]
[1746646629533,2.26117038,599.2,598.17,4.18335311]
[1746646629734,1.26108025,599.19,598.17,4.18335311]
[1746646629934,1.26157664,599.18,598.17,4.18335311]
[1746646630131,1.26179883,599.17,598.17,4.18335311]
[1746646630337,1.00009013,599.2,598.17,4.18335311]
[1746646630636,1.26181951,599.19,598.17,4.18335311]
[1746646630935,1.26181951,599.18,598.17,4.18335311]
[1746646631130,1.26181951,599.17,598.17,4.18335311]
[1746646631334,2.26190964,599.16,598.17,4.18335311]
[1746646631532,1.26181951,599.15,598.17,4.18335311]
[1746646631732,1.00009013,599.14,598.17,4.18335311]
[1746646632051,1.26211446,599.13,598.17,4.18335311]
[1746646632239,2.26238023,599.12,598.17,4.18335311]
[1746646632533,1.2622901,599.11,598.17,4.18335311]
[1746646632734,1.00009013,599.12,598.17,4.18335311]
[1746646633038,2.26388637,599.11,598.17,4.18335311]
[1746646633338,1.26379624,599.1,598.17,4.18335311]
[1746646633532,1.00009013,599.1,598.17,4.18335311]
[1746646633735,1.00009013,599.09,598.17,4.18335311]
[1746646634639,1.00009013,599.08,598.17,4.18335311]
[1746646635037,1.00009013,599.07,598.17,4.18335311]
[1746646635236,1.00009013,599.06,598.17,4.18335311]
[1746646636141,1.00009013,599.05,598.17,4.18335311]
[1746646636336,1.00009013,599.04,598.17,4.18335311]
[1746646636936,1.00009013,599.03,598.17,4.18335311]
[1746646637243,1.00009013,599.02,598.17,4.18335311]
[1746646638041,0.29062727,599.33,598.17,4.18335311]
[1746646638239,1.26316471,599.32,598.17,4.18335311]
[1746646638536,2.26701568,599.31,598.17,4.18335311]
[1746646638742,1.26316471,599.3,598.17,4.18335311]
[1746646638940,1.26316471,599.29,598.17,4.18335311]
[1746646639136,2.26701568,599.28,598.17,4.18335311]
[1746646639338,1.26316471,599.27,598.17,4.18335311]
[1746646639540,2.26701568,599.26,598.17,4.18335311]
[1746646639739,1.26316471,599.25,598.17,4.18335311]
[1746646639937,1.26316471,599.24,598.17,4.18335311]
[1746646640142,2.26701568,599.23,598.17,4.18335311]
[1746646640335,1.26316471,599.22,598.17,4.18335311]
[1746646640540,2.26701568,599.21,598.17,4.18335311]
[1746646640742,1.26316471,599.2,598.17,4.18335311]
[1746646640937,1.26316471,599.19,598.17,4.18335311]
[1746646641241,1.26316471,599.18,598.17,4.18335311]
[1746646641438,1.26316471,599.17,598.17,4.18335311]
[1746646641638,1.26316471,599.16,598.17,4.18335311]
[1746646641836,1.26316471,599.15,598.17,4.18335311]
[1746646642042,2.26701568,599.14,598.17,4.18335311]
[1746646642242,1.26316471,599.13,598.17,4.18335311]
[1746646642537,2.26701568,599.12,598.17,4.18335311]
[1746646642741,1.26316471,599.11,598.17,4.18335311]
[1746646642942,1.26316471,599.1,598.17,4.18335311]
[1746646643139,1.26316471,599.09,598.17,4.18335311]
[1746646643338,1.00385097,599.12,598.17,4.18335311]
[1746646643339,1.26316471,599.08,598.17,4.18335311]
[1746646643538,2.26701568,599.07,598.17,4.18335311]
[1746646643841,1.00385097,599.06,598.17,4.18335311]
[1746646644348,1.00385097,599.05,598.17,4.18335311]
[1746646644842,1.00385097,599.04,598.17,4.18335311]
[1746646645448,1.00385097,599.03,598.17,4.18335311]
[1746646645848,0.2906212,599.33,598.17,4.18335311]
[1746646646049,1.26305794,599.32,598.17,4.18335311]
[1746646646249,1.26304103,599.31,598.17,4.18335311]
[1746646646449,2.2664772,599.3,598.17,4.18335311]
[1746646646649,1.26304103,599.29,598.17,4.18335311]
[1746646646855,2.2664772,599.28,598.17,4.18335311]
[1746646647055,1.26304103,599.27,598.17,4.18335311]
[1746646647255,1.26304103,599.26,598.17,4.18335311]
[1746646647451,1.26304103,599.25,598.17,4.18335311]
[1746646647650,1.26304103,599.24,598.17,4.18335311]
[1746646647855,2.2664772,599.23,598.17,4.18335311]
[1746646648051,1.26206517,599.22,598.17,4.18335311]
[1746646648253,1.26206517,599.21,598.17,4.18335311]
[1746646648456,2.26550134,599.2,598.17,4.18335311]
[1746646648656,1.26206517,599.19,598.17,4.18335311]
[1746646648953,2.26550134,599.18,598.17,4.18335311]
[1746646649157,1.26206517,599.17,598.17,4.18335311]
[1746646649358,1.26206517,599.16,598.17,4.18335311]
[1746646649654,1.26206517,599.15,598.17,4.18335311]
[1746646649858,1.26206517,599.14,598.17,4.18335311]
[1746646650060,2.26550134,599.13,598.17,4.18335311]
[1746646650257,1.26206517,599.12,598.17,4.18335311]
[1746646650563,1.26216565,599.11,598.17,4.18335311]
[1746646650857,1.26216565,599.1,598.17,4.18335311]
[1746646651062,2.26560182,599.09,598.17,4.18335311]
[1746646651262,1.00343617,599.09,598.17,4.18335311]
[1746646651464,1.00343617,599.08,598.17,4.18335311]
[1746646651862,1.00343617,599.07,598.17,4.18335311]
[1746646652463,0.2906115,599.33,598.17,4.18335311]
[1746646652664,1.2622399,599.32,598.17,4.18335311]
[1746646652858,1.2622399,599.31,598.17,4.18335311]
[1746646653062,1.2622399,599.3,598.17,4.18335311]
[1746646653265,2.26511224,599.29,598.17,4.18335311]
[1746646653464,1.26221806,599.28,598.17,4.18335311]
[1746646653664,1.26223597,599.27,598.17,4.18335311]
[1746646653864,1.00287234,599.29,598.17,4.18335311]
[1746646654066,1.26236867,599.28,598.17,4.18335311]
[1746646654266,1.26236867,599.27,598.17,4.18335311]
[1746646654465,1.00287234,599.29,598.17,4.18335311]
[1746646654466,1.26236867,599.26,598.17,4.18335311]
[1746646654661,1.26236867,599.25,598.17,4.18335311]
[1746646654866,1.26236867,599.24,598.17,4.18335311]
[1746646655162,2.26524101,599.23,598.17,4.18335311]
[1746646655366,1.26236867,599.22,598.17,4.18335311]
[1746646655567,1.26236867,599.21,598.17,4.18335311]
[1746646655765,2.26524101,599.2,598.17,4.18335311]
[1746646656060,1.26236867,599.19,598.17,4.18335311]
[1746646656262,2.26524101,599.18,598.17,4.18335311]
[1746646656462,1.26236867,599.17,598.17,4.18335311]
[1746646656662,1.26236867,599.16,598.17,4.18335311]
[1746646656866,1.26236867,599.15,598.17,4.18335311]
[1746646657066,1.26236867,599.14,598.17,4.18335311]
[1746646657369,1.00287234,599.13,598.17,4.18335311]
[1746646657967,1.00287234,599.12,598.17,4.18335311]
[1746646658366,1.00287234,599.11,598.17,4.18335311]
[1746646659067,1.00287234,599.1,598.17,4.18335311]
[1746646659669,1.00287234,599.09,598.17,4.18335311]
[1746646660270,1.00287234,599.08,598.17,4.18335311]
[1746646660970,0.29059936,599.4,598.17,4.18335311]
[1746646661269,1.26405387,599.39,598.17,4.18335311]
[1746646661470,1.26405387,599.38,598.17,4.18335311]
[1746646661669,1.26405387,599.37,598.17,4.18335311]
[1746646661871,2.26853869,599.36,598.17,4.18335311]
[1746646662066,1.26405387,599.35,598.17,4.18335311]
[1746646662269,2.26853869,599.34,598.17,4.18335311]
[1746646662466,1.26405387,599.33,598.17,4.18335311]
[1746646662664,1.26405387,599.32,598.17,4.18335311]
[1746646662869,2.26853869,599.31,598.17,4.18335311]
[1746646663069,1.26405387,599.3,598.17,4.18335311]
[1746646663270,2.26853869,599.29,598.17,4.18335311]
[1746646663471,1.26405387,599.28,598.17,4.18335311]
[1746646663672,1.26405387,599.27,598.17,4.18335311]
[1746646663872,1.26405387,599.26,598.17,4.18335311]
[1746646664065,2.26853869,599.25,598.17,4.18335311]
[1746646664266,1.26405387,599.24,598.17,4.18335311]
[1746646664468,1.26405387,599.23,598.17,4.18335311]
[1746646664671,2.26853869,599.22,598.17,4.18335311]
[1746646664873,1.26405387,599.21,598.17,4.18335311]
[1746646665073,1.26350336,599.2,598.17,4.18335311]
[1746646665273,1.26350336,599.19,598.17,4.18335311]
[1746646665572,2.26798818,599.18,598.17,4.18335311]
[1746646665770,1.26350336,599.17,598.17,4.18335311]
[1746646666074,2.26798818,599.16,598.17,4.18335311]
[1746646666275,1.26350336,599.15,598.17,4.18335311]
[1746646666474,1.26350336,599.14,598.17,4.18335311]
[1746646666674,1.26350336,599.13,598.17,4.18335311]
[1746646666874,1.26350336,599.12,598.17,4.18335311]
[1746646667074,1.00448482,599.11,598.17,4.18335311]
[1746646667469,1.00448482,599.1,598.17,4.18335311]
[1746646668169,1.00448482,599.09,598.17,4.18335311]
[1746646668972,0.69269272,600.4,598.17,4.18335311]
[1746646669175,2.26396895,600.28,598.17,4.18335311]
[1746646669376,0.33323336,600.18,598.17,4.18335311]
[1746646669573,1.26073516,600.17,598.17,4.18335311]
[1746646669774,0.33325002,600.15,598.17,4.18335311]
[1746646670078,1.26073516,600.14,598.17,4.18335311]
[1746646670273,1.29369247,600.17,598.17,4.18335311]
[1746646670274,0.33326667,600.12,598.17,4.18335311]
[1746646670475,1.26073516,600.11,598.17,4.18335311]
[1746646670676,0.33328334,600.09,598.17,4.18335311]
[1746646670879,2.57060784,600.08,598.17,4.18335311]
[1746646671074,1.26073516,600.07,598.17,4.18335311]
[1746646671275,1.26073516,600.06,598.17,4.18335311]
[1746646671479,2.57060784,600.05,598.17,4.18335311]
[1746646671780,1.56737405,600.04,598.17,4.18335311]
[1746646671983,1.26073516,600.03,598.17,4.18335311]
[1746646672185,1.26073516,600.02,598.17,4.18335311]
[1746646672383,1.26073516,600.01,598.17,4.18335311]
[1746646672582,1.26073516,600.0,598.17,4.18335311]
[1746646672783,1.26073516,599.99,598.17,4.18335311]
[1746646672975,1.56737405,599.98,598.17,4.18335311]
[1746646673180,2.26396895,599.97,598.17,4.18335311]
[1746646673379,1.26073516,599.96,598.17,4.18335311]
[1746646673582,1.26073516,599.95,598.17,4.18335311]
[1746646673782,1.56737405,599.94,598.17,4.18335311]
[1746646673982,0.30663889,599.94,598.17,4.18335311]
[1746646674183,0.30663889,600.07,598.17,4.18335311]
[1746646674783,1.00000297,600.06,598.17,4.18335311]
[1746646675184,1.30664186,600.05,598.17,4.18335311]
[1746646675479,0.30663889,600.04,598.17,4.18335311]
[1746646675979,2.25701873,600.03,598.17,4.18335311]
[1746646676278,2.56365768,600.02,598.17,4.18335311]
[1746646676583,1.56365471,600.01,598.17,4.18335311]
[1746646676778,1.25701582,600.0,598.17,4.18335311]
[1746646676976,1.25701582,599.99,598.17,4.18335311]
[1746646677181,2.56365768,599.98,598.17,4.18335311]
[1746646677380,1.56365471,599.97,598.17,4.18335311]
[1746646677584,2.25701879,599.96,598.17,4.18335311]
[1746646677781,1.25701582,599.95,598.17,4.18335311]
[1746646677978,2.25701879,599.94,598.17,4.18335311]
[1746646678182,1.25701582,599.93,598.17,4.18335311]
[1746646678379,1.25701582,599.92,598.17,4.18335311]
[1746646678583,2.56365768,599.91,598.17,4.18335311]
[1746646678780,2.25701879,599.9,598.17,4.18335311]
[1746646678982,1.59041027,599.89,598.17,4.18335311]